bitfinex/quotes_SOLUSD_20250531
["timestamp","ask_amount","ask_price","bid_price","bid_amount"]
[1748696681193,45.14855426,155.67,155.59,22.6816565]
[1748696681413,22.6816565,155.63,155.59,22.6816565]
[1748696681796,22.6816565,155.63,155.58,29.10910147]
[1748696682297,22.6816565,155.63,155.58,6.42744497]
[1748696682497,22.6816565,155.63,155.58,29.10910147]
[1748696682695,22.6816565,155.63,155.58,6.42744497]
[1748696682895,22.6816565,155.63,155.58,29.10910147]
[1748696683912,13.93575891,155.63,155.58,20.36320388]
[1748696684613,146.9,155.66,155.58,20.36320388]
[1748696684799,13.93575891,155.64,155.59,13.93575891]
[1748696687201,13.93575891,155.64,155.55,6.0343]
[1748696687508,13.93575891,155.61,155.56,13.93575891]
[1748696687713,13.93575891,155.62,155.57,13.93575891]
[1748696687897,13.93575891,155.62,155.56,13.93575891]
[1748696688699,20.36208112,155.61,155.56,13.93575891]
[1748696688995,13.93575891,155.6,155.55,13.93575891]
[1748696689204,13.93575891,155.6,155.54,6.4291142]
[1748696689205,13.93575891,155.59,155.54,20.36487311]
[1748696689403,13.93575891,155.58,155.53,31.40528638]
[1748696689594,13.93575891,155.58,155.53,17.46952747]
[1748696689797,13.93575891,155.58,155.53,24.97575891]
[1748696690001,13.93575891,155.57,155.53,11.04]
[1748696690700,20.36407287,155.57,155.53,11.04]
[1748696691317,6.42831396,155.57,155.53,11.04]
[1748696692016,13.93575891,155.55,155.48,103.54]
[1748696692318,13.93575891,155.55,155.5,13.93575891]
[1748696692692,20.36493839,155.55,155.5,13.93575891]
[1748696692896,13.93575891,155.54,155.49,13.93575891]
[1748696693117,6.42917948,155.55,155.51,13.93575891]
[1748696693118,13.93575891,155.55,155.51,13.93575891]
[1748696693810,7.90292314,155.59,155.48,33.5507756]
[1748696693811,7.96427989,155.59,155.53,13.93575891]
[1748696693993,13.93575891,155.57,155.53,13.93575891]
[1748696694197,13.93575891,155.57,155.52,13.93575891]
[1748696694797,13.93575891,155.57,155.53,6.42962772]
[1748696695002,20.36388536,155.57,155.52,20.36577547]
[1748696695214,13.93575891,155.56,155.51,13.93575891]
[1748696695416,13.93575891,155.56,155.51,20.36616694]
[1748696696421,20.36418072,155.56,155.51,20.36616694]
[1748696696612,13.93575891,155.56,155.51,20.36616694]
[1748696696814,13.93575891,155.58,155.53,13.93575891]
[1748696697299,13.93575891,155.57,155.53,13.93575891]
[1748696698200,181.3638854,155.62,155.56,13.93575891]
[1748696698201,34.17956226,155.62,155.56,13.93575891]
[1748696698401,34.17956226,155.62,155.58,6.42756138]
[1748696698402,36.25324178,155.62,155.58,6.42756138]
[1748696698731,36.25324178,155.62,155.58,20.36332029]
[1748696699602,13.93575891,155.62,155.58,20.36332029]
[1748696700411,13.93575891,155.63,155.58,22.49646483]
[1748696700619,13.93575891,155.65,155.6,13.93575891]
[1748696700817,13.93575891,155.64,155.59,13.93575891]
[1748696701306,13.93575891,155.64,155.6,13.93575891]
[1748696701705,13.93575891,155.64,155.59,13.93575891]
[1748696702304,13.93575891,155.65,155.6,13.93575891]
[1748696702509,11.04,155.66,155.58,22.49646483]
[1748696702510,13.93575891,155.66,155.61,20.36208112]
[1748696702728,0.14216157,155.7,155.61,20.36208112]
[1748696702729,26.0,155.7,155.62,13.93575891]
[1748696702941,13.93575891,155.69,155.64,13.93575891]
[1748696703308,38.6318,155.71,155.61,6.42632221]
[1748696703309,13.93575891,155.65,155.61,6.42632221]
[1748696703631,13.93575891,155.67,155.62,13.93575891]
[1748696703803,19.19616435,155.71,155.66,13.93575891]
[1748696703804,13.93575891,155.71,155.66,13.93575891]
[1748696704506,13.93575891,155.71,155.66,20.35982908]
[1748696705540,20.35800248,155.71,155.66,13.93575891]
[1748696705810,20.35800248,155.71,155.63,16.06352485]
[1748696705811,13.93575891,155.67,155.6,20.32135891]
[1748696706112,56.20755891,155.7,155.6,35.51557721]
[1748696706113,22.70330065,155.65,155.6,35.51557721]
[1748696706311,22.70330065,155.66,155.61,22.70330065]
[1748696706537,22.70330065,155.67,155.62,6.42590926]
[1748696706716,22.70330065,155.68,155.63,22.70330065]
[1748696707120,22.70330065,155.68,155.64,22.70330065]
[1748696707535,22.70330065,155.71,155.66,22.70330065]
[1748696707914,22.70330065,155.7,155.65,22.70330065]
[1748696708107,6.42150008,155.73,155.63,22.70330065]
[1748696708108,22.70330065,155.68,155.63,22.70330065]
[1748696708632,22.70330065,155.68,155.63,29.12861238]
[1748696708931,22.70330065,155.69,155.64,22.70330065]
[1748696709336,29.1263775,155.69,155.64,22.70330065]
[1748696709635,22.70330065,155.68,155.63,29.12861238]
[1748696710137,22.70330065,155.68,155.63,22.70330065]
[1748696711020,29.12674226,155.68,155.63,22.70330065]
[1748696711220,29.12674226,155.68,155.6,6.3856]
[1748696711221,22.70330065,155.66,155.61,22.70330065]
[1748696711415,22.70330065,155.67,155.62,22.70330065]
[1748696711843,32.42313196,155.69,155.61,29.12962286]
[1748696712016,48.70330065,155.69,155.64,22.70330065]
[1748696712215,22.70330065,155.69,155.64,22.70330065]
[1748696712730,22.70330065,155.69,155.65,6.42467073]
[1748696713035,22.70330065,155.7,155.65,6.42467073]
[1748696713239,22.70330065,155.67,155.62,22.70330065]
[1748696713446,22.70330065,155.68,155.63,22.70330065]
[1748696713617,22.70330065,155.68,155.61,6.42632221]
[1748696713819,22.70330065,155.67,155.61,29.12962286]
[1748696714133,26.0,155.71,155.58,30.79627816]
[1748696714134,22.70330065,155.63,155.58,30.79627816]
[1748696714445,0.28432314,155.67,155.58,29.13057816]
[1748696714745,22.70330065,155.63,155.58,29.13057816]
[1748696714931,22.70330065,155.63,155.58,22.70330065]
[1748696715114,22.70330065,155.63,155.58,29.13083098]
[1748696715614,29.12880667,155.63,155.58,22.70330065]
[1748696716046,22.70330065,155.62,155.57,29.13118399]
[1748696716835,29.12929416,155.62,155.57,22.70330065]
[1748696717140,22.70330065,155.59,155.56,11.04]
[1748696717325,22.70330065,155.59,155.54,29.1322427]
[1748696717524,22.70330065,155.58,155.53,29.13286409]
[1748696718423,22.70330065,155.57,155.53,6.42956344]
[1748696719034,22.70330065,155.57,155.52,35.44168697]
[1748696719273,22.70330065,155.58,155.53,22.70330065]
[1748696719429,29.13092899,155.58,155.53,22.70330065]
[1748696719728,22.70330065,155.58,155.53,22.70330065]
[1748696720134,29.13087884,155.58,155.53,22.70330065]
[1748696720329,29.13087884,155.58,155.52,12.73838632]
[1748696720536,29.13087884,155.58,155.53,29.13288963]
[1748696720740,29.13087884,155.58,155.53,22.70330065]
[1748696721044,22.70330065,155.57,155.52,29.13329767]
[1748696721926,29.13135473,155.57,155.52,22.70330065]
[1748696722841,22.70330065,155.56,155.5,29.13403266]
[1748696723062,22.70330065,155.55,155.47,12.5479]
[1748696723239,22.70330065,155.55,155.5,22.70330065]
[1748696724234,29.13222165,155.55,155.5,22.70330065]
[1748696725435,22.70330065,155.55,155.5,29.13403973]
[1748696725654,66.6,155.59,155.5,29.13403973]
[1748696725655,146.9,155.61,155.54,22.70330065]
[1748696725856,22.70330065,155.6,155.52,11.0]
[1748696726029,22.70330065,155.6,155.55,22.70330065]
[1748696726231,22.70330065,155.6,155.55,29.13193644]
[1748696726857,29.13004297,155.6,155.55,29.13193644]
[1748696727050,29.13004297,155.6,155.55,22.70330065]
[1748696727232,22.70330065,155.58,155.53,6.42953821]
[1748696727552,22.70330065,155.58,155.53,29.13283886]
[1748696728141,22.70330065,155.59,155.54,22.70330065]
[1748696728427,22.70330065,155.59,155.53,6.42953821]
[1748696728663,22.70330065,155.59,155.54,22.70330065]
[1748696728868,22.70330065,155.6,155.55,22.70330065]
[1748696729033,22.70330065,155.59,155.54,22.70330065]
[1748696730261,22.70330065,155.59,155.54,29.13228841]
[1748696730752,22.70330065,155.56,155.52,11.0]
[1748696731129,22.70330065,155.57,155.52,40.13317169]
[1748696732046,22.70330065,155.57,155.52,33.70330065]
[1748696732252,22.70330065,155.57,155.52,40.13318253]
[1748696732447,6.42783466,155.58,155.52,40.13318253]
[1748696732646,22.70330065,155.57,155.52,40.13318253]
[1748696733279,6.42783466,155.58,155.48,22.36903357]
[1748696733280,22.70330065,155.54,155.5,22.70330065]
[1748696733559,22.70330065,155.55,155.5,22.70330065]
[1748696733729,22.70330065,155.55,155.51,22.70330065]
[1748696734157,22.70330065,155.55,155.5,22.70330065]
[1748696734955,6.42921435,155.54,155.5,22.70330065]
[1748696735342,0.28432314,155.56,155.5,22.70330065]
[1748696735543,22.70330065,155.55,155.5,22.70330065]
[1748696736463,29.13212783,155.55,155.5,29.13413714]
[1748696736665,29.13212783,155.55,155.5,22.70330065]
[1748696739372,6.42882718,155.55,155.5,22.70330065]
[1748696739565,29.13212783,155.55,155.5,22.70330065]
[1748696740035,20.37892523,155.55,155.5,13.95009805]
[1748696740864,20.37892523,155.55,155.5,20.38084519]
[1748696741036,13.95009805,155.55,155.5,20.38084519]
[1748696741839,146.9,155.57,155.54,13.95009805]
[1748696742470,146.9,155.57,155.56,13.95009805]
[1748696742671,13.95009805,155.6,155.56,6.42838776]
[1748696743649,13.95009805,155.6,155.55,20.37875993]
[1748696744135,29.14410431,155.6,155.55,22.717102]
[1748696744343,22.717102,155.56,155.51,22.717102]
[1748696744559,22.717102,155.56,155.51,29.14752762]
[1748696744946,22.717102,155.56,155.52,22.717102]
[1748696745262,22.717102,155.57,155.52,22.717102]
[1748696746065,153.32767486,155.58,155.52,22.717102]
[1748696746264,146.9,155.58,155.53,22.717102]
[1748696746469,146.9,155.58,155.55,22.717102]
[1748696746660,22.717102,155.6,155.55,29.14560293]
[1748696747467,29.14388362,155.6,155.55,22.717102]
[1748696747671,22.717102,155.59,155.54,22.717102]
[1748696748164,22.717102,155.59,155.54,29.14601886]
[1748696748567,29.14426037,155.59,155.54,29.14601886]
[1748696748770,22.717102,155.59,155.54,29.14601886]
[1748696749872,29.14431424,155.59,155.54,29.14601886]
[1748696750071,22.717102,155.58,155.53,22.717102]
[1748696750446,169.617102,155.61,155.56,22.717102]
[1748696750671,22.717102,155.6,155.55,29.14579701]
[1748696750846,22.717102,155.59,155.54,22.717102]
[1748696751053,22.717102,155.59,155.54,29.14620128]
[1748696751364,22.717102,155.6,155.55,22.717102]
[1748696751745,169.617102,155.61,155.56,22.717102]
[1748696751941,11.61215666,155.62,155.58,22.717102]
[1748696752187,11.61215666,155.62,155.6,22.717102]
[1748696752748,11.61215666,155.62,155.61,6.42632221]
[1748696753175,11.61215666,155.62,155.58,29.14466338]
[1748696753681,11.61215666,155.62,155.59,22.717102]
[1748696754676,34.32925866,155.62,155.58,6.42756138]
[1748696757782,40.75530767,155.62,155.57,22.717102]
[1748696758160,18.03820567,155.62,155.57,29.14499144]
[1748696758486,40.75530767,155.62,155.57,29.14499144]
[1748696759884,22.717102,155.61,155.56,22.717102]
[1748696760949,22.717102,155.59,155.54,33.597102]
[1748696761152,146.9,155.66,155.55,22.717102]
[1748696761365,153.32223752,155.71,155.62,22.717102]
[1748696761580,22.717102,155.68,155.63,22.717102]
[1748696762098,6.42063275,155.75,155.66,22.717102]
[1748696762254,22.717102,155.74,155.68,22.717102]
[1748696762697,10.015354,155.77,155.69,22.717102]
[1748696762859,22.717102,155.77,155.71,22.717102]
[1748696763058,46.89882013,155.8,155.72,22.717102]
[1748696763262,22.717102,155.77,155.72,22.717102]
[1748696763956,22.717102,155.77,155.73,6.42137032]
[1748696764458,22.717102,155.79,155.74,22.717102]
[1748696765472,22.717102,155.79,155.74,29.13780388]
[1748696765964,27.5391,155.82,155.74,6.42070188]
[1748696766166,22.717102,155.81,155.75,22.717102]
[1748696766366,6.41694045,155.84,155.74,6.42070188]
[1748696766367,6.41694045,155.84,155.76,22.717102]
[1748696766571,22.717102,155.83,155.78,22.717102]
[1748696767170,1.5391,155.86,155.78,22.717102]
[1748696767171,22.717102,155.82,155.78,26.0]
[1748696767367,2.52913075,155.91,155.81,22.717102]
[1748696767569,31.66022154,155.91,155.85,22.717102]
[1748696770265,29.13480793,155.82,155.76,22.717102]
[1748696770465,22.717102,155.79,155.74,10.86]
[1748696770783,22.717102,155.78,155.74,10.86]
[1748696771486,22.717102,155.79,155.74,10.86]
[1748696771829,22.717102,155.76,155.74,10.86]
[1748696771961,22.717102,155.78,155.74,10.86]
[1748696772368,6.41834039,155.81,155.74,39.99803097]
[1748696772570,26.0,155.83,155.74,39.99803097]
[1748696772571,22.717102,155.8,155.75,22.717102]
[1748696772772,22.717102,155.81,155.75,22.717102]
[1748696772986,6.41774869,155.82,155.74,39.99803097]
[1748696772987,22.717102,155.8,155.74,39.99803097]
[1748696773184,22.717102,155.79,155.74,33.577102]
[1748696773380,6.41774869,155.82,155.74,10.86]
[1748696773381,22.717102,155.78,155.74,10.86]
[1748696773602,22.717102,155.77,155.71,13.02069917]
[1748696773901,22.717102,155.77,155.72,22.717102]
[1748696774602,22.717102,155.77,155.71,35.73780117]
[1748696774969,22.717102,155.78,155.71,13.02069917]
[1748696775378,22.717102,155.78,155.73,22.717102]
[1748696775781,22.717102,155.78,155.73,29.13835594]
[1748696775982,66.70216157,155.83,155.73,6.42125394]
[1748696776188,26.14216157,155.83,155.73,6.42125394]
[1748696776395,32.55941113,155.83,155.73,6.42125394]
[1748696777008,22.717102,155.81,155.76,22.717102]
[1748696778001,29.13528438,155.81,155.76,22.717102]
[1748696778498,22.717102,155.81,155.76,22.717102]
[1748696779325,29.13526703,155.81,155.76,22.717102]
[1748696780412,26.14216157,155.83,155.77,22.717102]
[1748696780413,26.0,155.83,155.77,22.717102]
[1748696780600,17.27716818,155.84,155.8,22.717102]
[1748696780799,6.41716818,155.84,155.8,22.717102]
[1748696781010,29.13357662,155.85,155.8,22.717102]
[1748696781193,174.4392,155.86,155.82,22.717102]
[1748696781194,6.41607297,155.86,155.82,22.717102]
[1748696781508,22.717102,155.87,155.82,22.717102]
[1748696781707,22.717102,155.88,155.82,29.13465919]
[1748696781917,8.94311007,155.91,155.87,22.717102]
[1748696782212,22.717102,155.9,155.85,22.717102]
[1748696782411,8.94311007,155.91,155.82,17.33755719]
[1748696782412,22.717102,155.89,155.84,22.717102]
[1748696782793,22.717102,155.9,155.85,22.717102]
[1748696782992,29.13154132,155.9,155.85,22.717102]
[1748696783218,31.6602863,155.91,155.86,22.717102]
[1748696783583,31.66031694,155.91,155.86,22.717102]
[1748696784007,25.24623275,155.91,155.86,22.717102]
[1748696784396,2.52913075,155.91,155.86,22.717102]
[1748696784814,31.66034121,155.91,155.86,22.717102]
[1748696784991,31.66034121,155.91,155.85,22.717102]
[1748696785504,2.52913075,155.91,155.87,26.0]
[1748696785704,2.52913075,155.91,155.9,48.717102]
[1748696785902,2.52913075,155.91,155.9,22.717102]
[1748696786489,2.52913075,155.91,155.86,6.6346]
[1748696786692,2.52913075,155.91,155.88,22.717102]
[1748696787428,2.52913075,155.91,155.88,29.13212192]
[1748696787592,2.52913075,155.91,155.89,22.717102]
[1748696787917,2.52913075,155.91,155.88,22.717102]
[1748696788789,8.94309456,155.91,155.87,22.717102]
[1748696789018,31.66019656,155.91,155.85,40.61348389]
[1748696789198,22.717102,155.9,155.85,11.48]
[1748696789396,8.94309456,155.91,155.85,40.61340399]
[1748696789591,2.52913075,155.91,155.85,40.61340399]
[1748696789796,2.52913075,155.91,155.86,22.717102]
[1748696790025,8.9432245,155.91,155.85,40.61340399]
[1748696790397,31.6603265,155.91,155.86,22.717102]
[1748696790714,31.6603265,155.91,155.85,40.61348984]
[1748696791390,25.24623275,155.91,155.86,22.717102]
[1748696791600,2.52913075,155.91,155.86,22.717102]
[1748696791900,31.66025425,155.91,155.81,42.04512402]
[1748696792125,22.717102,155.89,155.83,22.717102]
[1748696792627,8.94315225,155.91,155.82,17.8776614]
[1748696792628,22.717102,155.88,155.82,17.8776614]
[1748696792936,22.717102,155.88,155.82,34.177102]
[1748696793241,22.717102,155.85,155.79,29.13599923]
[1748696793404,22.717102,155.84,155.79,6.41889723]
[1748696793738,22.85926357,155.85,155.79,29.13599923]
[1748696794291,22.85926357,155.85,155.8,22.717102]
[1748696794713,29.27574754,155.85,155.8,22.717102]
[1748696794923,29.27574754,155.85,155.78,40.59632148]
[1748696794924,22.717102,155.84,155.78,40.59632148]
[1748696795096,6.55864554,155.85,155.78,40.59632148]
[1748696795097,22.717102,155.83,155.78,40.59632148]
[1748696795294,22.717102,155.83,155.78,34.177102]
[1748696795496,6.55864554,155.85,155.75,22.717102]
[1748696795497,22.85926357,155.81,155.75,22.717102]
[1748696795720,22.717102,155.79,155.73,28.947102]
[1748696796094,22.717102,155.79,155.74,22.717102]
[1748696796511,26.0,155.82,155.73,6.23]
[1748696796512,22.717102,155.8,155.75,29.13743337]
[1748696796702,0.14216157,155.83,155.76,22.717102]
[1748696797019,22.717102,155.82,155.77,22.717102]
[1748696798202,22.717102,155.82,155.75,22.47169573]
[1748696798413,22.717102,155.82,155.77,22.717102]
[1748696798605,32.41706422,155.84,155.77,22.717102]
[1748696798606,22.717102,155.83,155.77,22.717102]
[1748696798809,22.717102,155.82,155.78,6.41930928]
[1748696799309,22.717102,155.85,155.79,22.717102]
[1748696799514,22.717102,155.85,155.77,22.46890165]
[1748696799515,22.717102,155.85,155.8,22.717102]
[1748696800130,22.717102,155.87,155.82,22.717102]
[1748696800815,22.717102,155.87,155.81,29.13483118]
[1748696801219,0.14216157,155.86,155.81,22.717102]
[1748696801404,22.717102,155.85,155.8,22.717102]
[1748696801605,22.717102,155.87,155.82,22.717102]
[1748696801849,48.717102,155.88,155.83,22.717102]
[1748696802013,22.717102,155.88,155.83,22.717102]
[1748696802906,29.13232227,155.88,155.83,29.13427443]
[1748696803219,22.717102,155.86,155.81,22.717102]
[1748696804598,27.5765,155.89,155.83,22.717102]
[1748696804599,30.70852459,155.89,155.83,22.717102]
[1748696805006,30.70852459,155.89,155.83,29.13407977]
[1748696805223,22.717102,155.89,155.83,29.13407977]
[1748696805547,14.00913075,155.91,155.86,22.717102]
[1748696806230,14.00913075,155.91,155.85,22.717102]
[1748696806231,22.717102,155.9,155.85,22.717102]
[1748696806435,22.717102,155.89,155.84,22.717102]
[1748696807115,29.13195527,155.89,155.84,22.717102]
[1748696807318,29.13195527,155.89,155.83,29.13407977]
[1748696807634,22.717102,155.86,155.8,29.13558723]
[1748696807802,22.717102,155.87,155.81,22.717102]
[1748696807999,22.717102,155.86,155.81,22.717102]
[1748696809005,22.717102,155.86,155.8,6.41848523]
[1748696809382,22.717102,155.86,155.81,22.717102]
[1748696810134,29.13299313,155.87,155.8,6.41848523]
[1748696810317,22.717102,155.86,155.81,22.717102]
[1748696810525,22.717102,155.87,155.81,22.717102]
[1748696811119,22.717102,155.87,155.82,29.1347634]
[1748696811322,22.717102,155.89,155.82,6.4176614]
[1748696811523,22.717102,155.88,155.83,22.717102]
[1748696811947,22.717102,155.89,155.83,22.717102]
[1748696812113,22.717102,155.89,155.84,22.717102]
[1748696812837,6.41436818,155.9,155.84,22.717102]
[1748696813014,29.13147018,155.9,155.85,22.717102]
[1748696813241,22.85926357,155.89,155.84,22.717102]
[1748696813548,22.717102,155.87,155.82,22.717102]
[1748696813939,22.717102,155.88,155.83,22.717102]
[1748696814363,22.717102,155.88,155.82,22.717102]
[1748696815156,6.41560274,155.87,155.82,29.13472321]
[1748696815360,22.717102,155.88,155.82,29.13472321]
[1748696815555,0.14216157,155.9,155.83,22.717102]
[1748696815556,22.717102,155.89,155.83,22.717102]
[1748696816257,22.717102,155.89,155.84,22.717102]
[1748696816571,29.13199324,155.89,155.84,22.717102]
[1748696817575,22.717102,155.87,155.82,22.717102]
[1748696818547,22.717102,155.87,155.82,29.13458554]
[1748696819258,29.27462104,155.88,155.82,29.13458554]
[1748696819664,22.717102,155.89,155.83,22.717102]
[1748696820053,22.717102,155.89,155.84,22.717102]
[1748696820267,6.41473667,155.9,155.84,22.717102]
[1748696820588,29.13183867,155.9,155.84,22.717102]
[1748696820798,22.717102,155.89,155.84,22.717102]
[1748696821099,22.717102,155.9,155.85,22.717102]
[1748696821384,20.42311048,155.91,155.86,22.717102]
[1748696821587,31.66021248,155.91,155.85,22.717102]
[1748696821754,22.717102,155.89,155.84,22.717102]
[1748696821956,22.85926357,155.9,155.84,22.717102]
[1748696822173,22.717102,155.9,155.85,22.717102]
[1748696822381,2.52913075,155.91,155.86,22.717102]
[1748696822588,8.94322529,155.91,155.86,22.717102]
[1748696822886,2.52913075,155.91,155.86,29.13310688]
[1748696823081,31.66035538,155.91,155.86,22.717102]
[1748696823498,22.717102,155.88,155.83,29.13426863]
[1748696823785,22.85926357,155.9,155.85,22.717102]
[1748696823961,2.52913075,155.91,155.87,13.88784314]
[1748696824682,2.52913075,155.91,155.87,20.30339154]
[1748696825462,2.52913075,155.91,155.88,13.88784314]
[1748696826297,2.52913075,155.91,155.87,13.88784314]
[1748696828178,8.943156,155.91,155.86,13.88784314]
[1748696828389,13.88784314,155.9,155.85,20.30426919]
[1748696828584,16.41697389,155.91,155.86,13.88784314]
[1748696828791,2.52913075,155.91,155.87,20.30344588]
[1748696829604,2.52913075,155.91,155.88,13.88784314]
[1748696830299,2.52913075,155.91,155.89,13.88784314]
[1748696830605,2.52913075,155.91,155.9,13.88784314]
[1748696831301,2.52913075,155.91,155.89,20.30242813]
[1748696832419,2.52913075,155.91,155.9,13.88784314]
[1748696832773,2.52913075,155.91,155.89,13.88784314]
[1748696832979,2.52913075,155.91,155.85,20.30426919]
[1748696833179,2.52913075,155.91,155.88,13.88784314]
[1748696833619,2.52913075,155.91,155.87,13.88784314]
[1748696833782,2.52913075,155.91,155.88,13.88784314]
[1748696835190,2.52913075,155.91,155.88,6.41479679]
[1748696835807,2.52913075,155.91,155.9,13.88784314]
[1748696836683,2.52913075,155.91,155.87,20.30331051]
[1748696836883,2.52913075,155.91,155.86,20.30371203]
[1748696836884,16.41697389,155.91,155.86,20.30371203]
[1748696837187,16.41697389,155.91,155.86,6.41586889]
[1748696837393,16.41697389,155.91,155.86,20.30371203]
[1748696837986,22.83101052,155.91,155.86,13.88784314]
[1748696838326,13.88784314,155.9,155.85,20.30412811]
[1748696840294,13.88784314,155.9,155.85,13.88784314]
[1748696840519,13.88784314,155.9,155.84,23.90399292]
[1748696840520,13.88784314,155.88,155.84,11.4]
[1748696840719,13.88784314,155.87,155.82,13.88784314]
[1748696840930,13.88784314,155.85,155.8,38.20705023]
[1748696841090,13.88784314,155.85,155.8,17.9008]
[1748696841289,0.28432314,155.89,155.78,1.6634]
[1748696841290,13.88784314,155.83,155.78,13.88784314]
[1748696841506,13.88784314,155.83,155.76,92.38]
[1748696841507,13.88784314,155.82,155.77,20.30721524]
[1748696841689,13.88784314,155.82,155.76,112.68786193]
[1748696841888,13.88784314,155.8,155.75,26.80915318]
[1748696842301,0.14216157,155.83,155.74,20.30866374]
[1748696842302,13.88784314,155.79,155.74,20.30866374]
[1748696842690,13.88784314,155.8,155.74,13.88784314]
[1748696842906,13.88784314,155.79,155.73,25.28784314]
[1748696843522,13.88784314,155.77,155.73,11.4]
[1748696843906,22.67007293,155.77,155.73,11.4]
[1748696844099,22.67007293,155.77,155.73,17.82135723]
[1748696844300,22.67007293,155.78,155.73,17.82135723]
[1748696844604,22.67007293,155.78,155.73,40.49143016]
[1748696844930,29.08850704,155.81,155.76,22.67007293]
[1748696845122,6.41843411,155.81,155.75,22.67007293]
[1748696845332,29.08850704,155.81,155.75,22.67007293]
[1748696845631,29.08850704,155.81,155.76,6.42013353]
[1748696846024,22.67007293,155.79,155.74,22.67007293]
[1748696846415,22.67007293,155.77,155.73,11.4]
[1748696846728,22.67007293,155.75,155.69,22.67007293]
[1748696846957,26.0,155.78,155.69,29.09297797]
[1748696846958,22.67007293,155.74,155.69,29.09297797]
[1748696847105,22.67007293,155.75,155.69,29.09297797]
[1748696847302,22.67007293,155.75,155.7,22.67007293]
[1748696847501,22.67007293,155.75,155.71,6.4221951]
[1748696847902,22.67007293,155.75,155.7,29.09254976]
[1748696848106,22.67007293,155.78,155.72,22.67007293]
[1748696848322,22.67007293,155.78,155.73,22.67007293]
[1748696848533,29.0890861,155.79,155.73,22.67007293]
[1748696848740,22.67007293,155.79,155.73,22.67007293]
[1748696849043,22.67007293,155.78,155.73,22.67007293]
[1748696849732,22.67007293,155.78,155.73,29.09111339]
[1748696849913,22.8122345,155.79,155.73,29.09111339]
[1748696850112,22.67007293,155.78,155.73,29.09111339]
[1748696850318,22.67007293,155.78,155.73,22.67007293]
[1748696850515,22.67007293,155.78,155.72,29.09175043]
[1748696850930,22.67007293,155.77,155.71,22.67007293]
[1748696851354,22.67007293,155.76,155.71,22.67007293]
[1748696851836,22.67007293,155.77,155.72,22.67007293]
[1748696852343,29.08998735,155.77,155.72,22.67007293]
[1748696853546,26.0,155.78,155.74,22.67007293]
[1748696854233,29.23120808,155.79,155.74,22.67007293]
[1748696854821,29.23120808,155.79,155.73,22.67007293]
[1748696855023,22.8122345,155.76,155.68,6.42343268]
[1748696855223,22.67007293,155.75,155.7,22.67007293]
[1748696855437,22.67007293,155.75,155.7,29.09237318]
[1748696856657,22.8122345,155.76,155.71,22.67007293]
[1748696857626,29.23252971,155.76,155.7,22.67007293]
[1748696858024,22.67007293,155.75,155.7,22.67007293]
[1748696858668,22.67007293,155.75,155.68,6.42343268]
[1748696858669,22.67007293,155.77,155.72,22.67007293]
[1748696858957,146.9,155.78,155.72,22.67007293]
[1748696859341,22.67007293,155.77,155.71,22.67007293]
[1748696859863,22.67007293,155.76,155.72,6.42178268]
[1748696860033,22.67007293,155.76,155.71,29.09214978]
[1748696860441,22.67007293,155.78,155.72,22.67007293]
[1748696860642,22.67007293,155.76,155.71,29.09214978]
[1748696862258,22.67007293,155.76,155.71,6.42207685]
[1748696862442,22.67007293,155.76,155.71,29.09214978]
[1748696862639,1.6383,155.79,155.72,22.67007293]
[1748696862841,162.94489733,155.82,155.76,22.67007293]
[1748696862842,22.67007293,155.81,155.76,22.67007293]
[1748696863430,146.9,155.82,155.77,6.41972138]
[1748696863661,146.9,155.82,155.78,22.67007293]
[1748696864959,6.415865,155.87,155.8,22.67007293]
[1748696865267,22.67007293,155.84,155.79,22.67007293]
[1748696865434,22.67007293,155.83,155.79,6.41889723]
[1748696865635,22.67007293,155.83,155.78,22.67007293]
[1748696865939,22.67007293,155.83,155.78,29.08923441]
[1748696866352,29.08755876,155.83,155.76,6.42013353]
[1748696866553,22.67007293,155.81,155.76,29.09020646]
[1748696866865,22.67007293,155.82,155.77,22.67007293]
[1748696867744,22.67007293,155.82,155.78,6.41930928]
[1748696868355,22.67007293,155.82,155.77,29.08971672]
[1748696868551,22.67007293,155.82,155.77,6.41964379]
[1748696869256,22.67007293,155.84,155.78,22.67007293]
[1748696869838,22.67007293,155.84,155.79,6.41889723]
[1748696870444,22.67007293,155.84,155.79,29.08897016]
[1748696871262,22.67007293,155.83,155.78,29.08922301]
[1748696871838,6.41692949,155.84,155.76,6.42013353]
[1748696871839,22.67007293,155.82,155.76,6.42013353]
[1748696872053,22.67007293,155.79,155.75,11.38]
[1748696872255,22.67007293,155.79,155.74,24.23567293]
[1748696874671,22.67007293,155.79,155.75,6.42048016]